Cogmind - Beta 11.1 @@@ ROGUE MODE // 2022.11.02 @ 14:58:11 Player: ILikeMonsters1890 Result: Destroyed by B-99 Colossus with Multirail Performance ------------- Evolutions (9) 4500 Regions Visited (19) 3800 Robots Destroyed (130) 650 Value Destroyed (3376) 3376 Prototype IDs (60) 1200 Alien Tech Used (0) 0 Bonus (5576) 5576 TOTAL SCORE: 19102 Bonus ------- High Alert Combat Kills 615 Follower Combat Kills 1616 Network Hubs Disabled 200 Built Enhanced Grunts 300 A7 Reached Mainframe 300 Met R17 at Cetus 500 Met R17 at Research 2000 Scanned by Researcher 500 Friendly Fire -455 Cogmind --------- Core Integrity 0/1600 Matter 298/300 Energy 90/100 System Corruption 8% Temperature Cool (0) Movement Core (50) Location -1/Command Parts ------- > --- POWER (3) -------- (None) > --- PROPULSION (7) --- (None) > --- UTILITY (13) ----- (None) > --- WEAPON (2) ------- (None) > --- INVENTORY (5) ---- Light Quantum Reactor Hypervelocity Multirail Compact Mass Driver Fusion Bomb Launcher Peak State ------------ > --- POWER ------------ Light Antimatter Reactor Light Particle Reactor > --- PROPULSION ------- Improved VTOL Module Improved Cesium-ion Thruster Q-thruster Q-thruster Improved Diametric Drive Impulse Thruster Array > --- UTILITY ---------- Experimental Power Amplifier Coolant Network Long-range Sensor Array Experimental Signal Interpreter Improved Transmission Jammer Cloaking Device Improved Hacking Suite System Shield > --- WEAPON ----------- Hypervelocity Multirail Mass Driver > --- INVENTORY -------- Light Antimatter Reactor Cesium-ion Thruster Improved Cesium-ion Thruster Advanced Weight Redist. System [Rating: 146] Favorites ----------- Power Light Ion Engine Engine Light Ion Engine Power Core Light Nuclear Core Reactor Light Antimatter Reactor Propulsion Improved VTOL Module Wheel Wheel Hover Unit Improved Hover Unit Flight Unit Improved VTOL Module Utility Improved Sensor Array Device Improved Sensor Array Storage Medium Storage Unit Processor Improved Signal Interpreter Hackware Improved Hacking Suite Protection Centrium Medium Armor Plating Weapon Maul Energy Gun Medium Laser Ballistic Gun Assault Rifle Ballistic Cannon Light Cannon Launcher Heavy Missile Launcher Impact Weapon Maul Slashing Weapon Makeshift Sword Build | -11 -10 -10 -10 -9 -8 -8 -8 -6 -5 -5 -5 -5 -5 -4 -3 -3 -2 -1 -1 ------- Run | Scr Mat Min Exi Min Mat Sto Rec Fac Fac Ext Cet Arc Hub Fac Res Tes Res Acc Com Slots Evolved 18 | . . . . . 4 . . 4 2 . . . . 2 2 . 2 2 . Power 2 | . . . . . . . . 1 1 . . . . . . . . . . Propulsion 5 | . . . . . 2 . . 2 1 . . . . . . . . . . Utility 11 | . . . . . 2 . . 1 . . . . . 2 2 . 2 2 . Weapon . | . . . . . . . . . . . . . . . . . . . . Parts Attached 182 | 9 2 . 4 . 23 7 . 21 6 7 15 3 5 12 22 22 8 12 4 Power 35 | 1 . . . . 4 . . 7 3 2 4 . . 3 2 2 3 3 1 Engine 13 | 1 . . . . 4 . . 4 1 1 1 . . 1 . . . . . Core 8 | . . . . . . . . 3 2 1 2 . . . . . . . . Reactor 14 | . . . . . . . . . . . 1 . . 2 2 2 3 3 1 Propulsion 49 | 4 . . 2 . 10 6 . 7 1 1 . . . 2 12 2 2 . . Treads . | . . . . . . . . . . . . . . . . . . . . Leg . | . . . . . . . . . . . . . . . . . . . . Wheel 8 | 4 . . . . 4 . . . . . . . . . . . . . . Hover 9 | . . . 2 . 6 1 . . . . . . . . . . . . . Flight 32 | . . . . . . 5 . 7 1 1 . . . 2 12 2 2 . . Utility 48 | 2 1 . . . 7 . . 4 2 . 3 1 1 6 8 6 2 3 2 Device 30 | 1 1 . . . 2 . . 4 1 . 2 . 1 5 5 4 2 1 1 Storage 4 | 1 . . . . 2 . . . 1 . . . . . . . . . . Processor 6 | . . . . . 2 . . . . . . . . 1 1 2 . . . Hackware 3 | . . . . . . . . . . . . 1 . . 1 . . 1 . Protection 5 | . . . . . 1 . . . . . 1 . . . 1 . . 1 1 Artifact . | . . . . . . . . . . . . . . . . . . . . Weapon 50 | 2 1 . 2 . 2 1 . 3 . 4 8 2 4 1 . 12 1 6 1 Energy Gun 3 | 1 . . . . . . . . . . . . . . . 2 . . . Energy Cannon . | . . . . . . . . . . . . . . . . . . . . Ballistic Gun 12 | 1 . . . . . . . . . . . . . . . 4 1 6 . Ballistic Cannon 6 | . 1 . . . . . . . . . . . . . . 4 . . 1 Launcher 11 | . . . . . . . . 1 . 2 4 1 2 . . 1 . . . Special Weapon . | . . . . . . . . . . . . . . . . . . . . Impact Weapon 2 | . . . . . 2 . . . . . . . . . . . . . . Slashing Weapon 16 | . . . 2 . . 1 . 2 . 2 4 1 2 1 . 1 . . . Piercing Weapon . | . . . . . . . . . . . . . . . . . . . . Special Melee Weapon . | . . . . . . . . . . . . . . . . . . . . Unidentified Prototypes 17 | . . . . . . 1 . 1 1 . 1 . . 1 2 8 2 . . Parts Lost 35 | . . . . . 1 . . . 1 2 1 . . 2 2 7 . 9 10 Power 7 | . . . . . . . . . . 2 1 . . 1 . 1 . 1 1 Propulsion 11 | . . . . . 1 . . . . . . . . 1 . 4 . 4 1 Utility 16 | . . . . . . . . . 1 . . . . . 1 2 . 4 8 Weapon 1 | . . . . . . . . . . . . . . . 1 . . . . Highest Loss Streak 10 | . . . . . 1 . . . 1 2 1 . . 1 1 4 . 5 10 To Critical Strikes . | . . . . . . . . . . . . . . . . . . . . Average Slot Usage (%) 86 | . 100 100 100 100 93 100 100 95 84 71 70 88 88 82 81 81 65 61 37 Engine 6 | . 14 14 14 14 9 9 9 9 7 4 3 5 5 4 . . . . . Reactor 2 | . . . . . . . . . . . . 5 5 5 9 8 7 7 3 Wheel 4 | . 28 28 18 . 5 . . . . . . . . . . . . . . Hover 7 | . . . 9 28 24 17 . . . . . . . . . . . . . Flight 19 | . . . . . . 18 36 39 41 40 35 35 35 30 28 27 18 14 3 Device 14 | . 14 14 14 14 9 18 18 16 9 5 9 14 11 17 21 20 20 16 10 Storage 5 | . 14 14 14 14 9 9 9 6 1 . . . . . . . . . . Processor 5 | . . . . . 9 9 9 6 5 5 5 5 5 5 4 5 8 8 5 Hackware 2 | . . . . . . . . . . . . 1 5 5 8 9 8 11 11 Protection 2 | . . . . . 8 . . . . . . 5 5 5 3 . . . 2 Ballistic Gun 1 | . 14 14 4 . . . . . . . . . . . . 3 . 1 . Impact Weapon 5 | . . . . . 15 12 9 6 5 5 5 5 5 2 . . . . . Slashing Weapon 5 | . . . 18 28 2 5 9 5 5 3 4 4 4 5 2 . . . . Naked Turns 2 | . . . . . . . . . . . . . . . . . . . 2 Heaviest Build 52 | 13 14 14 14 14 33 21 20 33 38 21 40 40 39 40 41 52 33 45 20 Greatest Support 50 | 26 20 20 20 18 40 32 20 33 38 40 40 40 40 40 50 50 39 39 16 Greatest Overweight (x) 6 | . . . 1 . . . 6 . . . . . . . . 1 . 1 1 Average Overweight (x) . | . . . . . . . . . . . . . . . . . . . . Largest Inventory Capacity 15 | 8 8 8 8 8 15 10 10 10 10 5 5 5 5 5 5 5 5 5 5 Average Capacity 7 | 7 8 8 8 8 10 10 10 10 6 5 5 5 5 5 5 5 5 5 5 Most Carried 13 | 8 8 8 8 8 13 10 10 10 9 5 5 5 5 5 5 5 4 5 5 Average Carried 6 | 3 7 8 7 8 9 9 9 8 5 4 4 5 4 4 4 4 3 4 4 Final Capacity 10 | 8 8 8 8 8 10 10 10 10 5 5 5 5 5 5 5 5 5 5 5 Final Carried 10 | 8 8 8 8 8 9 10 10 10 5 5 5 5 5 5 5 3 4 5 4 Class Distribution -------------------- 20% | Mutant 20% | Scavenger-Mutant 16% | Sprinter 13% | Scavenger-Sprinter 12% | Hacker-Sprinter 5% | Hacker-Scout 4% | Commander-Sprinter Dominant Class ---------------- Mutant | -10/Materials Mutant | -10/Mines Mutant | -10/Exiles Mutant | -9/Mines Scavenger-Mutant | -8/Materials Commander-Mutant | -8/Storage Sprinter | -8/Recycling Sprinter | -6/Factory Sprinter | -5/Factory Sprinter | -5/Extension Sprinter | -5/Cetus Scavenger-Sprinter | -5/Archives Scavenger-Sprinter | -5/Hub_04(d) Scavenger-Sprinter | -4/Factory Hacker-Sprinter | -3/Research Hacker-Sprinter | -3/Testing Hacker-Scout | -2/Research Hacker-Scout | -1/Access Hacker-Sprinter | -1/Command Resources | -11 -10 -10 -10 -9 -8 -8 -8 -6 -5 -5 -5 -5 -5 -4 -3 -3 -2 -1 -1 ----------- Run | Scr Mat Min Exi Min Mat Sto Rec Fac Fac Ext Cet Arc Hub Fac Res Tes Res Acc Com Matter Collected 2769 | 386 40 . 50 . 200 100 15 180 118 139 295 30 78 110 220 206 150 442 10 Remotely . | . . . . . . . . . . . . . . . . . . . . Salvage Created 6207 | 284 155 . 424 280 719 215 300 449 278 99 166 40 1046 526 96 201 . 929 . Parts 271 | 25 7 . 11 11 26 10 7 15 5 4 6 4 61 12 6 21 . 40 . Haulers Intercepted 7 | . 1 . . . 2 1 . 2 . . . . 1 . . . . . . Recyclers Shooed 5 | . 1 . . . . . 1 . 1 . . . . 1 . . . 1 . Parts Field Recycled . | . . . . . . . . . . . . . . . . . . . . Retrieved Matter . | . . . . . . . . . . . . . . . . . . . . Parts Self-Destructed . | . . . . . . . . . . . . . . . . . . . . Prevented . | . . . . . . . . . . . . . . . . . . . . Kills | -11 -10 -10 -10 -9 -8 -8 -8 -6 -5 -5 -5 -5 -5 -4 -3 -3 -2 -1 -1 ------- Run | Scr Mat Min Exi Min Mat Sto Rec Fac Fac Ext Cet Arc Hub Fac Res Tes Res Acc Com Combat Hostiles Destroyed 47 | . . . . 2 7 1 6 4 2 1 4 . 6 5 . 2 . 7 . Melee 19 | . . . . 2 4 . 4 . 1 . . . 3 5 . . . . . Guns 9 | . . . . . . . . . . . . . . . . 2 . 7 . AOE 11 | . . . . . . . . 4 . 1 4 . 2 . . . . . . Classes Destroyed 15 | 3 2 . . 2 2 1 1 . . . . . 2 1 . 1 . . . Worker 19 | 3 . . . . 2 . . 2 . . . . 12 . . . . . . Builder 3 | . . . . . . . . . . . . . 2 . . 1 . . . Tunneler 11 | 8 . . . 1 2 . . . . . . . . . . . . . . Hauler 7 | . 1 . . . 2 1 . 2 . . . . 1 . . . . . . Recycler 21 | 1 1 . . 2 4 2 2 1 1 . . . 2 2 . . . 3 . Operator 7 | . . . . . . 2 . . . 1 . 1 1 . 1 1 . . . Drone 7 | . . . . . . . 6 . . . . . . 1 . . . . . Watcher 15 | . 1 . . . 3 . . 2 1 1 1 . 2 1 2 . . 1 . Swarmer 8 | . . . . . 4 . . 4 . . . . . . . . . . . Grunt 14 | . . . . 1 1 1 . . 2 1 4 . 4 . . . . . . Brawler 1 | . . . . 1 . . . . . . . . . . . . . . . Sentry 3 | . . . . . . . . . . . . . 2 1 . . . . . Specialist 1 | . . . . . . . . . . . . . . . . 1 . . . Hunter 4 | . . . . . 2 . . . . . . . . . . . . 2 . Programmer 9 | . . . . . . . . . . . . . . 3 . 1 . 5 . Enhanced Grunt 1 | . . . . . . . . . . . . . 1 . . . . . . Best Kill Streak 21 | 3 2 . . 4 4 3 3 5 3 1 2 1 21 1 2 2 . 4 . Combat Bots Only 4 | . . . . 2 2 1 1 4 2 1 2 . 4 1 . 2 . 2 . Max Kills in Single Turn 16 | 1 1 . . 1 1 1 1 3 1 1 2 1 16 1 1 1 . 2 . Gunslinging . | . . . . . . . . . . . . . . . . . . . . Exploded 2 | . . . . . . . . 2 . 1 2 . 2 . . . . . . Melee 1 | . . . . 1 1 . 1 . 1 . . . 1 1 . . . . . Uniques/NPCs Destroyed . | . . . . . . . . . . . . . . . . . . . . Combat | -11 -10 -10 -10 -9 -8 -8 -8 -6 -5 -5 -5 -5 -5 -4 -3 -3 -2 -1 -1 -------- Run | Scr Mat Min Exi Min Mat Sto Rec Fac Fac Ext Cet Arc Hub Fac Res Tes Res Acc Com Damage Taken 6371 | . . . . 36 193 71 . 127 79 194 143 163 213 561 487 1081 . 1061 1962 Core 2132 | . . . . . 44 14 . . . 49 9 30 37 59 86 201 . 273 1330 Absorbed by Shields 343 | . . . . . . . . . . . 33 . . 14 . . . . 296 Regen/Repaired (Parts) 80 | . . . . . 51 . . 29 . . . . . . . . . . . Core Remaining (%) 93 | 100 . . . 100 . . 89 100 . . . . 87 94 . 77 100 . . Volleys Fired 122 | 32 10 . . . . . . 2 . 6 10 . 2 . . 25 2 31 2 Largest 2 | 2 2 . . . . . . 1 . 1 1 . 1 . . 2 1 1 1 Hottest 107 | 70 70 . . . . . . 39 . 39 39 . 39 . . 107 50 50 66 Shots Fired 166 | 64 20 . . . . . . 2 . 6 10 . 2 . . 27 2 31 2 Gun 137 | 64 20 . . . . . . . . . . . . . . 20 2 31 . Cannon 5 | . . . . . . . . . . . . . . . . 3 . . 2 Launcher 24 | . . . . . . . . 2 . 6 10 . 2 . . 4 . . . Special . | . . . . . . . . . . . . . . . . . . . . Kinetic 99 | 32 10 . . . . . . . . . . . . . . 22 2 31 2 Thermal 43 | 32 10 . . . . . . . . . . . . . . 1 . . . Explosive 24 | . . . . . . . . 2 . 6 10 . 2 . . 4 . . . Electromagnetic . | . . . . . . . . . . . . . . . . . . . . Robot Hit Streak 10 | 5 6 . . . . . . . . . 4 . . . . 10 4 9 . Robot Miss Streak 6 | 2 2 . . . . . . 2 . 3 6 . . . . 5 2 3 . Penetration Max 1 | . . . . . . . . . . . . . . . . . . 1 . Secondary Targets . | . . . . . . . . . . . . . . . . . . . . Shots Hit Robots 254 | 41 13 . 23 7 25 11 16 7 10 2 9 5 17 13 4 18 2 31 . Core Hits 152 | 13 5 . 9 2 10 3 4 7 3 3 17 1 33 5 1 12 . 24 . Critical Kills 20 | . . . . . 2 1 1 . . . . . 1 1 . 3 . 11 . Critical Parts Destroyed 65 | . . . . . 4 3 3 2 1 1 . 1 1 . . 11 1 37 . Critical Strikes 90 | 1 1 . . . 6 4 4 2 2 1 . 1 3 2 . 14 1 48 . Burn 2 | 1 1 . . . . . . . . . . . . . . . . . . Destroy 63 | . . . . . . . . . . . . . . . . 14 1 48 . Smash 22 | . . . . . 6 4 4 2 1 1 . 1 2 1 . . . . . Sever 3 | . . . . . . . . . 1 . . . 1 1 . . . . . Melee Attacks 232 | . . . 26 8 46 18 33 11 13 4 10 6 25 21 11 . . . . Impact 124 | . . . . . 44 18 24 10 8 3 5 1 3 8 . . . . . Slashing 108 | . . . 26 8 2 . 9 1 5 1 5 5 22 13 11 . . . . Piercing . | . . . . . . . . . . . . . . . . . . . . Sneak Attacks 35 | . . . . 4 11 6 3 4 1 1 . 1 1 3 . . . . . Combat Hostiles 3 | . . . . . 1 . . . . . . . 1 1 . . . . . Follow-up Attacks 19 | . . . 1 . 2 1 7 . 5 . . 1 2 . . . . . . Damage Inflicted 15309 | 522 163 . 1849 431 1788 751 1059 994 424 306 1326 246 3323 916 376 358 12 465 . Guns 1356 | 522 163 . . . . . . . . . . . . . . 194 12 465 . Cannons 32 | . . . . . . . . . . . . . . . . 32 . . . Explosions 4421 | . . . . . . . . 388 . 116 1177 . 2608 . . 132 . . . Melee 9500 | . . . 1849 431 1788 751 1059 606 424 190 149 246 715 916 376 . . . . Ramming . | . . . . . . . . . . . . . . . . . . . . Kinetic 1063 | 285 75 . . . . . . . . . . . . . . 226 12 465 . Thermal 325 | 237 88 . . . . . . . . . . . . . . . . . . Explosive 2206 | . . . . . . . . 388 . 116 1177 . 393 . . 132 . . . Electromagnetic 2215 | . . . . . . . . . . . . . 2215 . . . . . . Impact 4988 | . . . . . 1788 751 909 606 242 190 67 18 117 300 . . . . . Slashing 4512 | . . . 1849 431 . . 150 . 182 . 82 228 598 616 376 . . . . Piercing . | . . . . . . . . . . . . . . . . . . . . Highest Corruption 9 | . . . . . . . 1 . . . . . . 1 1 9 . 8 8 Average Corruption 2 | . . . . . . . 1 . . . . . . 1 1 4 . 3 8 Corruption Purged . | . . . . . . . . . . . . . . . . . . . . Corruption Blocked . | . . . . . . . . . . . . . . . . . . . . Effects 21 | . . . . . . . 4 . . . . . . . . 5 . 8 4 Message Errors 10 | . . . . . . . 1 . . . . . . . . 5 . 2 2 Matter Fused 5 | . . . . . . . 2 . . . . . . . . . . 2 1 Heat Flow Errors 3 | . . . . . . . . . . . . . . . . . . 2 1 Energy Discharges 2 | . . . . . . . 1 . . . . . . . . . . 1 . Data Loss (minor) 1 | . . . . . . . . . . . . . . . . . . 1 . Overload Shots . | . . . . . . . . . . . . . . . . . . . . Overflow Damage 3034 | . . . 311 187 675 261 371 361 119 79 33 73 246 157 161 . . . . Projectiles . | . . . . . . . . . . . . . . . . . . . . Explosions 258 | . . . . . . . . 42 . 5 1 . 210 . . . . . . Melee 2776 | . . . 311 187 675 261 371 319 119 74 32 73 36 157 161 . . . . Knockbacks 19 | . . . . . 5 5 3 1 1 . 1 . . 3 . . . . . Impact 19 | . . . . . 5 5 3 1 1 . 1 . . 3 . . . . . Kinetic . | . . . . . . . . . . . . . . . . . . . . Secondary . | . . . . . . . . . . . . . . . . . . . . Self-Inflicted Damage 360 | . . . . . . . . . . 12 26 . 139 . . 183 . . . Shots 8 | . . . . . . . . . . 1 2 . 2 . . 3 . . . Rammed . | . . . . . . . . . . . . . . . . . . . . Targets Rammed . | . . . . . . . . . . . . . . . . . . . . Kicked . | . . . . . . . . . . . . . . . . . . . . Crushed . | . . . . . . . . . . . . . . . . . . . . Highest Temperature 191 | 65 38 . . . . . . 123 132 148 17 32 4 6 38 15 . 191 167 Average Temperature 29 | 15 11 . . . . . . 26 29 60 10 21 4 3 19 10 . 93 97 Received Heat Transfer 578 | . . . . 12 . 45 . 9 27 27 26 45 18 87 75 183 . 9 15 Siege Activations . | . . . . . . . . . . . . . . . . . . . . Robots Corrupted 2 | . . . . . . . . . . . . . 2 . . . . . . Combat Hostiles . | . . . . . . . . . . . . . . . . . . . . Parts Fried 55 | . . . . . 15 4 5 8 6 3 1 . 6 7 . . . . . Impact Corruptions 61 | . . . . . 21 6 12 7 4 2 2 1 1 5 . . . . . Robots Melted . | . . . . . . . . . . . . . . . . . . . . Combat Hostiles . | . . . . . . . . . . . . . . . . . . . . Parts Melted 3 | . 3 . . . . . . . . . . . . . . . . . . Heat Transferred 1110 | 777 333 . . . . . . . . . . . . . . . . . . Parts Sabotaged 1 | . . . . . . . . . . . . . . 1 . . . . . Parts Stolen . | . . . . . . . . . . . . . . . . . . . . Parts Stripped . | . . . . . . . . . . . . . . . . . . . . Power Chain Reactions 2 | . . . . . . . . 1 . . . . 1 . . . . . . Missiles Intercepted . | . . . . . . . . . . . . . . . . . . . . Alert | -11 -10 -10 -10 -9 -8 -8 -8 -6 -5 -5 -5 -5 -5 -4 -3 -3 -2 -1 -1 ------- Run | Scr Mat Min Exi Min Mat Sto Rec Fac Fac Ext Cet Arc Hub Fac Res Tes Res Acc Com Peak Influence 1344 | 60 65 25 . 78 213 273 302 1105 581 691 1035 612 1344 975 1080 836 557 547 521 Initial 967 | . 39 25 . . 24 46 69 967 477 284 302 414 214 658 511 506 437 333 220 Average 418 | 24 52 25 . 22 81 176 193 950 513 496 710 556 406 771 710 721 481 442 317 Maximum Alert Level 4 | . . . . . 1 1 1 4 2 2 3 2 4 3 3 3 2 2 2 Low Security (%) 36 | 100 100 100 . 100 97 50 41 . . . . . . . . . . . . Level 1 13 | . . . . . 2 49 58 . . 31 10 . 65 . . . . 29 65 Level 2 25 | . . . . . . . . . 100 68 38 100 29 35 55 35 100 70 34 Level 3 23 | . . . . . . . . 98 . . 51 . . 64 44 64 . . . Level 4 . | . . . . . . . . 1 . . . . 5 . . . . . . Level 5 . | . . . . . . . . . . . . . . . . . . . . High Security . | . . . . . . . . . . . . . . . . . . . . Max Security . | . . . . . . . . . . . . . . . . . . . . Squads Dispatched 23 | . . . . . 3 3 . 3 . 1 1 . 2 2 2 3 . 3 . Investigation 7 | . . . . . 1 1 . 3 . . 1 . . . . 1 . . . Extermination 3 | . . . . . . . . . . . . . . 1 . 1 . 1 . Reinforcement 12 | . . . . . 2 2 . . . 1 . . 2 . 2 1 . 2 . Assault 1 | . . . . . . . . . . . . . . 1 . . . . . Garrison . | . . . . . . . . . . . . . . . . . . . . Intercept . | . . . . . . . . . . . . . . . . . . . . Searches Triggered 4 | . . . . . . . . 1 . 1 . . . . . 1 . 1 . Construction Impeded . | . . . . . . . . . . . . . . . . . . . . Haulers Reinforced 1 | . . . . . . . . . . . . . 1 . . . . . . Active Scanning Responses . | . . . . . . . . . . . . . . . . . . . . Cargo Convoy Interrupts . | . . . . . . . . . . . . . . . . . . . . Stealth | -11 -10 -10 -10 -9 -8 -8 -8 -6 -5 -5 -5 -5 -5 -4 -3 -3 -2 -1 -1 --------- Run | Scr Mat Min Exi Min Mat Sto Rec Fac Fac Ext Cet Arc Hub Fac Res Tes Res Acc Com Distress Signals 18 | . . . . . . . . 1 1 3 2 . 2 . 7 . . 1 1 Communications Jammed 103 | . . . . . . . . . . . . . . 21 56 20 . 6 . Distress Signals 102 | . . . . . . . . . . . . . . 20 56 20 . 6 . Times Spotted 255 | . . . . 3 20 16 15 15 5 13 21 4 14 24 33 24 5 28 15 Peak Tracking Total 16 | . . . . 3 5 11 4 6 3 5 5 3 8 8 16 14 4 10 13 Tactical Retreats 28 | . . . . . 6 . . 1 . 3 . . 1 6 5 2 1 2 1 Traps | -11 -10 -10 -10 -9 -8 -8 -8 -6 -5 -5 -5 -5 -5 -4 -3 -3 -2 -1 -1 ------- Run | Scr Mat Min Exi Min Mat Sto Rec Fac Fac Ext Cet Arc Hub Fac Res Tes Res Acc Com Traps Triggered 24 | . . . . . 1 . . 1 . 2 . . 2 4 7 . 1 . 6 Indirectly 2 | . . . . . . . . . . . . . 2 . . . . . . Trap Hack Attempts . | . . . . . . . . . . . . . . . . . . . . Triggered . | . . . . . . . . . . . . . . . . . . . . Disarmed 9 | . . . . . 4 . . . . . . . . . . . . . 5 Reprogrammed 12 | . 6 . . . . 6 . . . . . . . . . . . . . Reused . | . . . . . . . . . . . . . . . . . . . . Traps Extracted . | . . . . . . . . . . . . . . . . . . . . Installed . | . . . . . . . . . . . . . . . . . . . . Triggered . | . . . . . . . . . . . . . . . . . . . . Machines | -11 -10 -10 -10 -9 -8 -8 -8 -6 -5 -5 -5 -5 -5 -4 -3 -3 -2 -1 -1 ---------- Run | Scr Mat Min Exi Min Mat Sto Rec Fac Fac Ext Cet Arc Hub Fac Res Tes Res Acc Com Machines Disabled 33 | . . . . . 1 . . 1 . 1 . 1 20 . . 8 . . 1 Max in Single Turn 20 | . . . . . 1 . . 1 . 1 . . 20 . . 2 . . 1 Garrison Access 4 | . . . . . . . . . . . . . . 1 1 . . 2 . Network Hub 1 | . . . . . . . . . . . . . 1 . . . . . . Machines Sabotaged . | . . . . . . . . . . . . . . . . . . . . Garrisons Compromised . | . . . . . . . . . . . . . . . . . . . . Overloaded Fab Kills . | . . . . . . . . . . . . . . . . . . . . Hacking | -11 -10 -10 -10 -9 -8 -8 -8 -6 -5 -5 -5 -5 -5 -4 -3 -3 -2 -1 -1 --------- Run | Scr Mat Min Exi Min Mat Sto Rec Fac Fac Ext Cet Arc Hub Fac Res Tes Res Acc Com Machines Accessed 98 | . 4 . 3 . 12 5 12 9 . 8 2 1 6 6 7 6 3 11 3 Terminals 63 | . 2 . . . 8 5 6 4 . 8 2 . 5 3 3 4 2 8 3 Fabricators 4 | . . . . . . . . 2 . . . . . . 1 1 . . . Repair Stations 6 | . . . . . 2 . . 1 . . . . . . 2 1 . . . Recycling Units 13 | . 2 . . . 1 . 6 1 . . . . . 1 . . 1 1 . Scanalyzers 2 | . . . . . 1 . . 1 . . . . . . . . . . . Garrison Access 6 | . . . . . . . . . . . . . 1 2 1 . . 2 . Total Hacks 313 | . 10 . 3 . 40 12 37 14 . 15 6 25 12 11 22 29 28 35 14 Successful 146 | . 5 . 3 . 20 5 10 9 . 6 1 25 7 3 6 11 9 16 10 Failed 166 | . 5 . . . 20 7 27 5 . 9 5 . 5 8 16 18 18 19 4 Catastrophic 31 | . . . . . 4 1 1 2 . 2 . . . 2 7 6 1 4 1 Database Lockouts 1 | . . . . . . . . . . . . . . . . . 1 . . Manual 47 | . . . 1 . 6 1 1 2 . 4 1 3 2 . . 7 14 2 3 Terminals 215 | . 7 . . . 27 12 21 7 . 15 6 . 10 6 13 22 26 29 14 Fabricators 8 | . . . . . . . . 2 . . . . . . 2 4 . . . Repair Stations 17 | . . . . . 8 . . 2 . . . . . . 4 3 . . . Recycling Units 28 | . 3 . . . 1 . 16 1 . . . . . 2 . . 2 3 . Scanalyzers 6 | . . . . . 4 . . 2 . . . . . . . . . . . Garrison Access 11 | . . . . . . . . . . . . . 2 3 3 . . 3 . Terminal Hacks 111 | . 3 . 3 . 11 5 6 2 . 5 1 25 7 2 5 7 9 11 9 Record 40 | . . . 2 . . . . . . . 1 25 . . 1 2 2 6 1 Part Schematic 2 | . . . . . . 1 . . . . . . 1 . . . . . . Robot Analysis 6 | . . . . . . . 1 . . . . . . 1 2 . . 1 1 Prototype ID Bank 9 | . . . . . 3 . 3 1 . . . . . . . . 1 . 1 Open Door 10 | . . . . . . 3 . . . 4 . . . . . . . 3 . Open DSF 2 | . . . . . . . . 1 . . . . . 1 . . . . . Level Access Points 2 | . . . . . . . . . . . . . . . 1 . . . 1 Branch Access Points 3 | . 1 . . . . . . . . . . . 1 . . 1 . . . Emergency Access Points 5 | . . . . . 2 . . . . . . . 1 . . . 1 . 1 Terminal Index 2 | . 1 . . . 1 . . . . . . . . . . . . . . Fabricator Index 1 | . . . . . . . . . . . . . . . . . 1 . . Repair Station Index 2 | . . . . . 1 . . . . . . . . . . . 1 . . Alert Level 5 | . . . . . . . 1 . . . . . 1 . . 1 1 . 1 Unreport Threat 4 | . . . . . . . 1 . . . . . 1 . . 1 . 1 . Locate Traps 2 | . . . . . . . . . . . . . . . . . 1 . 1 Disarm Traps 2 | . . . . . 1 . . . . . . . . . . . . . 1 Reprogram Traps 2 | . 1 . . . . 1 . . . . . . . . . . . . . Dispatch Records 1 | . . . . . 1 . . . . . . . . . . . . . . Patrol Status 1 | . . . . . . . . . . . . . . . . . . . 1 Recall Investigation 1 | . . . . . 1 . . . . . . . . . . . . . . Zone Layout 7 | . . . . . 1 . . . . 1 . . 2 . 1 1 1 . . EX-Prototype ID Bank 1 | . . . 1 . . . . . . . . . . . . . . . . Protovariant Controls 1 | . . . . . . . . . . . . . . . . 1 . . . Fabricator Hacks 3 | . . . . . . . . 1 . . . . . . 1 1 . . . Build 3 | . . . . . . . . 1 . . . . . . 1 1 . . . Repair Station Hacks 7 | . . . . . 4 . . 2 . . . . . . . 1 . . . Scan Component 3 | . . . . . 2 . . 1 . . . . . . . . . . . Repair 3 | . . . . . 2 . . 1 . . . . . . . . . . . Refit 1 | . . . . . . . . . . . . . . . . 1 . . . Recycling Unit Hacks 10 | . 2 . . . 1 . 4 1 . . . . . . . . . 2 . Retrieve Matter 1 | . . . . . . . . . . . . . . . . . . 1 . Retrieve Components 9 | . 2 . . . 1 . 4 1 . . . . . . . . . 1 . Scanalyzer 6 | . . . . . 4 . . 2 . . . . . . . . . . . Insert Component 3 | . . . . . 2 . . 1 . . . . . . . . . . . Analyze 3 | . . . . . 2 . . 1 . . . . . . . . . . . Garrison Access Hacks 3 | . . . . . . . . . . . . . . 1 . . . 2 . Seal Access 3 | . . . . . . . . . . . . . . 1 . . . 2 . Unauthorized Hacks 6 | . . . . . . . . 1 . 1 . . . . . 2 . 1 1 Terminals 4 | . . . . . . . . . . 1 . . . . . 1 . 1 1 Assimilate 4 | . . . . . . . . . . 1 . . . . . 1 . 1 1 Fabricators 2 | . . . . . . . . 1 . . . . . . . 1 . . . Liberate 1 | . . . . . . . . . . . . . . . . 1 . . . Overload 1 | . . . . . . . . 1 . . . . . . . . . . . Repair Stations . | . . . . . . . . . . . . . . . . . . . . Recycling Units . | . . . . . . . . . . . . . . . . . . . . Scanalyzers . | . . . . . . . . . . . . . . . . . . . . Garrison Access . | . . . . . . . . . . . . . . . . . . . . Data Cores Recovered 3 | . . . . . . . . . . . . . 1 . 1 1 . . . Used 1 | . . . . . . . . . . . . . 1 . . . . . . Hacking Detections 73 | . 2 . . . 11 4 11 5 . 5 2 . 6 4 6 6 3 5 3 Full Trace Events 10 | . . . . . 1 . 6 1 . . 1 . . . . 1 . . . Feedback Events 1 | . . . . . . . 1 . . . . . . . . . . . . Corruption 1 | . . . . . . . 1 . . . . . . . . . . . . Feedback Blocked . | . . . . . . . . . . . . . . . . . . . . Robot Schematics Acquired . | . . . . . . . . . . . . . . . . . . . . Robots Built . | . . . . . . . . . . . . . . . . . . . . Authchips . | . . . . . . . . . . . . . . . . . . . . Time 93 | . . . . . . . . . . . . . . . . 93 . . . Total Robot Build Rating . | . . . . . . . . . . . . . . . . . . . . Part Schematics Acquired 5 | . . . . . 2 1 . 1 . . . . 1 . . . . . . Parts Built 2 | . . . . . . . . 1 . . . . . . 1 . . . . Authchips . | . . . . . . . . . . . . . . . . . . . . Time 174 | . . . . . . . . 128 . . . . . . 46 . . . . Total Part Build Rating 17 | . . . . . . . . 8 . . . . . . 9 . . . . Parts Repaired 3 | . . . . . 2 . . 1 . . . . . . . . . . . Time 131 | . . . . . 93 . . 38 . . . . . . . . . . . Parts Recycled . | . . . . . . . . . . . . . . . . . . . . Recycled Matter . | . . . . . . . . . . . . . . . . . . . . Retrieved Matter . | . . . . . . . . . . . . . . . . . . . . Retrieved Components 17 | . 2 . . . . . 4 10 . . . . . . . . . 1 . Parts Scanalyzed 3 | . . . . . 2 . . 1 . . . . . . . . . . . Part Schematics Acquired 3 | . . . . . 2 . . 1 . . . . . . . . . . . Parts Damaged 1 | . . . . . 1 . . . . . . . . . . . . . . Bothacking | -11 -10 -10 -10 -9 -8 -8 -8 -6 -5 -5 -5 -5 -5 -4 -3 -3 -2 -1 -1 ------------ Run | Scr Mat Min Exi Min Mat Sto Rec Fac Fac Ext Cet Arc Hub Fac Res Tes Res Acc Com Used RIF Installer . | . . . . . . . . . . . . . . . . . . . . Robots Hacked . | . . . . . . . . . . . . . . . . . . . . Non-combat . | . . . . . . . . . . . . . . . . . . . . Combat . | . . . . . . . . . . . . . . . . . . . . Robot Hacks Applied . | . . . . . . . . . . . . . . . . . . . . Relay Couplers Released 1 | . . . . . . . . . . . . . . . 1 . . . . Machine Destruction 1 | . . . . . . . . . . . . . . . 1 . . . . Fabnet Peak Effective % . | . . . . . . . . . . . . . . . . . . . . Robots Rewired 12 | . . . 3 . . 1 8 . . . . . . . . . . . . Allies Hacked 1 | . . . . . . . . . . . . . . . . . . 1 . Hacks Repelled . | . . . . . . . . . . . . . . . . . . . . Allies | -11 -10 -10 -10 -9 -8 -8 -8 -6 -5 -5 -5 -5 -5 -4 -3 -3 -2 -1 -1 -------- Run | Scr Mat Min Exi Min Mat Sto Rec Fac Fac Ext Cet Arc Hub Fac Res Tes Res Acc Com Total Allies 35 | . . . 3 . . 10 8 . . 7 5 . . . . . . 1 1 Largest Group 10 | . . . 3 3 . 10 7 6 . 7 7 5 3 . . . . 1 1 Highest-Rated Group 623 | . . . 37 37 . 173 115 110 . 309 623 527 281 . . . . 45 45 Highest-Rated Ally 159 | . . . 21 21 . 29 34 34 . 159 159 143 96 . . . . 45 45 Total Orders . | . . . . . . . . . . . . . . . . . . . . Ally Attacks 282 | . . . . 10 . 52 33 16 . 23 96 28 24 . . . . . . Total Damage 6933 | . . . . 109 . 605 342 368 . 415 3137 991 966 . . . . . . Kills 44 | . . . . 1 . 4 8 4 . 3 16 4 4 . . . . . . Allies Corrupted 2 | . . . . . . . . . . . . . 1 . . . . 1 . Allies Melted . | . . . . . . . . . . . . . . . . . . . . Intel | -11 -10 -10 -10 -9 -8 -8 -8 -6 -5 -5 -5 -5 -5 -4 -3 -3 -2 -1 -1 ------- Run | Scr Mat Min Exi Min Mat Sto Rec Fac Fac Ext Cet Arc Hub Fac Res Tes Res Acc Com Robot Analysis Total 6 | . . . . . . . 1 . . . . . . 1 2 . . 1 1 Derelict Logs Recovered 1 | . . . . 1 . . . . . . . . . . . . . . . Drone Launches . | . . . . . . . . . . . . . . . . . . . . Drone Recoveries . | . . . . . . . . . . . . . . . . . . . . Exploration | -11 -10 -10 -10 -9 -8 -8 -8 -6 -5 -5 -5 -5 -5 -4 -3 -3 -2 -1 -1 ------------- Run | Scr Mat Min Exi Min Mat Sto Rec Fac Fac Ext Cet Arc Hub Fac Res Tes Res Acc Com Turns Passed 6999 | 317 249 35 657 127 1380 207 385 589 125 314 300 76 217 557 497 309 139 381 138 Spaces Moved 10787 | 236 233 44 773 149 1033 272 467 807 224 579 531 238 581 949 1227 819 413 834 378 Core 22 | 14 . . . . . . 3 . . . . . . . . . . . 5 Treads . | . . . . . . . . . . . . . . . . . . . . Legs . | . . . . . . . . . . . . . . . . . . . . Wheels 1206 | 222 233 44 499 . 208 . . . . . . . . . . . . . . Hover 1340 | . . . 274 149 825 92 . . . . . . . . . . . . . Flight 8219 | . . . . . . 180 464 807 224 579 531 238 581 949 1227 819 413 834 373 Fastest Speed 17 | 50 80 80 56 56 48 26 26 20 17 20 20 20 20 20 20 20 21 21 30 Average Speed 32 | 82 80 80 71 56 56 33 28 20 21 22 23 20 20 20 21 22 22 24 30 Slowest Speed 350 | 90 80 80 125 56 80 48 350 23 26 24 24 20 20 24 27 96 27 89 85 Overloaded Moves . | . . . . . . . . . . . . . . . . . . . . Propulsion Burnouts . | . . . . . . . . . . . . . . . . . . . . Robots Hopped 53 | . . . . . . . 7 4 . 1 . 1 7 3 9 12 3 4 2 Cave-ins Triggered . | . . . . . . . . . . . . . . . . . . . . Exploration Rate (%) 44 | 9 38 21 92 28 53 38 91 30 4 58 84 98 46 25 40 70 18 20 19 Regions Visited 19 Branch Regions 11 Pre-discovered Areas 1 | . . . 1 . . . . . . . . . . . . . . . . Known Exits Taken 16 | . 1 . . 1 1 1 1 1 1 1 1 1 1 1 1 1 1 1 . Unknown Exits Taken 3 | 1 . 1 1 . . . . . . . . . . . . . . . . Scrap Searched . | . . . . . . . . . . . . . . . . . . . . Spaces Dug 110 | . . . . . 6 . . . 1 95 1 . 1 3 2 1 . . . Terrain Destroyed 673 | . . . . . 6 . . 34 1 98 162 . 199 3 2 164 . 2 2 Melee 14 | . . . . . 6 . . . 1 . 1 . 1 3 2 . . . . Projectile 3 | . . . . . . . . . . . . . . . . 1 . . 2 AOE 653 | . . . . . . . . 34 . 98 161 . 198 . . 162 . . . Terrain Rammed . | . . . . . . . . . . . . . . . . . . . . Walls Destroyed . | . . . . . . . . . . . . . . . . . . . . Machines Disabled . | . . . . . . . . . . . . . . . . . . . . Actions | -11 -10 -10 -10 -9 -8 -8 -8 -6 -5 -5 -5 -5 -5 -4 -3 -3 -2 -1 -1 --------- Run | Scr Mat Min Exi Min Mat Sto Rec Fac Fac Ext Cet Arc Hub Fac Res Tes Res Acc Com Total 13709 | 295 275 43 855 184 1767 355 667 1197 289 747 678 258 645 1276 1437 912 453 978 398 Wait 1952 | . 25 . 29 28 632 49 76 339 33 133 104 12 36 232 102 13 25 84 . Move 10667 | 235 232 43 772 148 1032 271 454 799 223 576 530 235 567 943 1208 794 406 825 374 Hop 47 | . . . . . . . 5 2 . 1 . 1 6 2 9 12 3 4 2 Pick Up 188 | 17 3 . 6 . 23 4 5 13 6 4 8 1 3 19 33 22 7 9 5 Fast Attach . | . . . . . . . . . . . . . . . . . . . . Attach 87 | 7 . . 1 . 8 . . 5 6 2 5 . . 7 13 13 7 9 4 Detach 16 | . . . . . 2 . . 1 2 . . . . . . 2 1 7 1 Swap 95 | 2 2 . 3 . 15 7 . 16 . 5 10 3 5 5 9 9 1 3 . Drop 134 | 2 3 . 6 . 14 3 5 9 11 4 3 1 3 14 24 22 1 6 3 Fire 122 | 32 10 . . . . . . 2 . 6 10 . 2 . . 25 2 31 2 Melee 200 | . . . 22 8 41 17 24 10 8 3 8 5 23 20 11 . . . . Ram . | . . . . . . . . . . . . . . . . . . . . Kick . | . . . . . . . . . . . . . . . . . . . . Crush . | . . . . . . . . . . . . . . . . . . . . Escape Stasis 83 | . . . . . . . . 1 . 13 . . . 34 28 . . . 7 Rewire 118 | . . . 16 . . 4 98 . . . . . . . . . . . . Trap . | . . . . . . . . . . . . . . . . . . . . Miscellaneous . | . . . . . . . . . . . . . . . . . . . . Route ------- -11/Scrapyard -10/Materials (discovered 2 exits: [*Mat] / *Min) -10/Mines -10/Exiles (discovered 2 exits: [*Min x2]) -9/Mines -8/Materials (discovered 2 exits: [*Fac] / *Sto) -8/Storage -8/Recycling -6/Factory -5/Factory -5/Extension (discovered 2 exits: *Fac / *Cet) -5/Cetus (discovered 2 exits: *Fac / *Arc) -5/Archives (discovered 3 exits: *Fac / *Hub x2) -5/Hub_04(d) -4/Factory -3/Research (discovered 4 exits: Res x3 / *Tes) -3/Testing -2/Research -1/Access -1/Command (discovered 2 exits: Sur x2) History --------- Turn | Location | Event 26 | -11/Scrapyard | Discovered new exit (range 15) 318 | -11/Scrapyard | Entered Materials 339 | -10/Materials | Build established: Mutant 469 | -10/Materials | Discovered new exit (range 16) 547 | -10/Materials | Discovered new exit (range 16) 550 | -10/Materials | Identified exit to Mines 567 | -10/Materials | Entered Mines 598 | -10/Mines | Deemed a non-threat by the Exiles lab entrance 599 | -10/Mines | Discovered new exit (range 5) 602 | -10/Mines | Entered Exiles 602 | -10/Exiles | Found Exiles lab destroyed 615 | -10/Exiles | Discovered new exit (range 14) 914 | -10/Exiles | Learned location of Zion (-6) 1007 | -10/Exiles | Opened EX-Vault 1099 | -10/Exiles | Discovered new exit (range 11) 1259 | -10/Exiles | Entered Mines 1259 | -9/Mines | Accompanied by 3 allies 1260 | -9/Mines | Assembled infested the area 1265 | -9/Mines | Assisted by a Guerilla fighting off Assembled 1288 | -9/Mines | Identified exit to Materials 1386 | -9/Mines | Entered Materials 1386 | -8/Materials | Evolved 4 slots: Propulsion x2, Utility x2 1677 | -8/Materials | Build established: Scavenger-Mutant 1855 | -8/Materials | Discovered new exit (range 15) 2663 | -8/Materials | Repaired Broken Gravmag System 2684 | -8/Materials | Discovered new exit (range 15) 2751 | -8/Materials | Repaired Imp. Hover Unit 2766 | -8/Materials | Identified exit to Storage 2766 | -8/Materials | Entered Storage 2781 | -8/Storage | Assisted by bots powering up and referring to "LRC-V3" 2972 | -8/Storage | Used back door to open Recycling access 2972 | -8/Storage | Discovered new exit (range 4) 2972 | -8/Storage | Identified exit to Recycling 2973 | -8/Storage | Entered Recycling 2997 | -8/Recycling | Spotter reported a threat 3018 | -8/Recycling | Spotter reported a threat 3018 | -8/Recycling | Spotter reported a threat 3027 | -8/Recycling | Spotter reported a threat 3050 | -8/Recycling | Spotter reported a threat 3071 | -8/Recycling | Spotter reported a threat 3117 | -8/Recycling | Spotter reported a threat 3122 | -8/Recycling | Spotter reported a threat 3145 | -8/Recycling | Spotter reported a threat 3154 | -8/Recycling | Spotter reported a threat 3191 | -8/Recycling | Spotter reported a threat 3192 | -8/Recycling | Spotter reported a threat 3198 | -8/Recycling | Spotter reported a threat 3203 | -8/Recycling | Spotter reported a threat 3207 | -8/Recycling | Spotter reported a threat 3225 | -8/Recycling | Spotter reported a threat 3228 | -8/Recycling | Discovered new exit (range 16) 3228 | -8/Recycling | Spotter reported a threat 3265 | -8/Recycling | Spotter reported a threat 3265 | -8/Recycling | Spotter reported a threat 3276 | -8/Recycling | Spotter reported a threat 3308 | -8/Recycling | Spotter reported a threat 3312 | -8/Recycling | Identified exit to Factory 3316 | -8/Recycling | Spotter reported a threat 3316 | -8/Recycling | Spotter reported a threat 3358 | -8/Recycling | Entered Factory 3358 | -6/Factory | Accompanied by 6 allies 3358 | -6/Factory | Evolved 4 slots: Power x1, Propulsion x2, Utility x1 3428 | -6/Factory | Identified exit to DSF 3618 | -6/Factory | Fabricated Antigrav Array (x1) 3708 | -6/Factory | Search patrols dispatched 3726 | -6/Factory | Repaired Reaction Control System 3939 | -6/Factory | Discovered new exit (range 13) 3946 | -6/Factory | Identified exit to Factory 3947 | -6/Factory | Entered another Factory area 3947 | -5/Factory | Evolved 2 slots: Power x1, Propulsion x1 3969 | -5/Factory | Build established: Sprinter 4002 | -5/Factory | Discovered new exit (range 15) 4005 | -5/Factory | Identified exit to Extension 4072 | -5/Factory | Entered Extension 4211 | -5/Extension | Rescued a captive Derelict 4229 | -5/Extension | Rescued a captive Derelict 4230 | -5/Extension | Rescued a captive Derelict 4329 | -5/Extension | Rescued A7 4331 | -5/Extension | Rescued a captive Derelict 4331 | -5/Extension | Rescued a captive Derelict 4340 | -5/Extension | Discovered new exit (range 10) 4340 | -5/Extension | Discovered new exit (range 6) 4341 | -5/Extension | Identified exit to Cetus 4372 | -5/Extension | Search patrols dispatched 4386 | -5/Extension | Entered Cetus 4386 | -5/Cetus | Accompanied by 7 allies (A7) 4391 | -5/Cetus | Acquired a Cetus Manufacturing Module code from A7 4392 | -5/Cetus | Spotted Cetus Guard 4393 | -5/Cetus | Spotted Cetus Guard 4393 | -5/Cetus | Spotted Cetus Guard 4403 | -5/Cetus | Spotted Cetus Guard 4414 | -5/Cetus | Allies destroyed Cetus Guard 4416 | -5/Cetus | Allies destroyed Cetus Guard 4420 | -5/Cetus | Allies destroyed Cetus Guard 4420 | -5/Cetus | Allies destroyed Cetus Guard 4463 | -5/Cetus | Started Cetus Manufacturing Module 4488 | -5/Cetus | Manufactured an Enhanced Grunt 4507 | -5/Cetus | Discovered new exit (range 15) 4513 | -5/Cetus | Manufactured an Enhanced Grunt 4523 | -5/Cetus | Identified exit to Archives 4538 | -5/Cetus | Manufactured an Enhanced Grunt 4544 | -5/Cetus | Spotted Cetus Guard 4563 | -5/Cetus | Manufactured an Enhanced Grunt 4567 | -5/Cetus | Escorted A7 to Cetus Mainframe 4588 | -5/Cetus | Manufactured an Enhanced Grunt 4603 | -5/Cetus | Spotted Cetus Guard 4603 | -5/Cetus | Spotted Cetus Guard 4603 | -5/Cetus | Spotted Cetus Guard 4609 | -5/Cetus | Allies destroyed Cetus Guard 4620 | -5/Cetus | Allies destroyed Cetus Guard 4621 | -5/Cetus | Allies destroyed Cetus Guard 4657 | -5/Cetus | Discovered new exit (range 15) 4658 | -5/Cetus | Met Revision 17 4662 | -5/Cetus | Identified exit to Factory 4686 | -5/Cetus | Entered Archives 4686 | -5/Archives | Accompanied by 5 allies (A7) 4691 | -5/Archives | Received a hacking code to weaken MAIN.C 4696 | -5/Archives | Unable to access archive contents 4700 | -5/Archives | Unable to access archive contents 4700 | -5/Archives | Discovered new exit (range 14) 4702 | -5/Archives | Unable to access archive contents 4702 | -5/Archives | Discovered new exit (range 13) 4705 | -5/Archives | Identified exit to Hub_04(d) 4723 | -5/Archives | Discovered exit to Factory (range 15) 4762 | -5/Archives | Entered Hub_04(d) 4762 | -5/Hub_04(d) | Accompanied by 3 allies 4789 | -5/Hub_04(d) | Discovered exit to Factory (range 15) 4913 | -5/Hub_04(d) | Build established: Scavenger-Sprinter 4967 | -5/Hub_04(d) | Network Hub disabled 4979 | -5/Hub_04(d) | Entered Factory 4979 | -4/Factory | Evolved 2 slots: Utility x2 4994 | -4/Factory | Identified exit to DSF 5267 | -4/Factory | Found Prototype Slashing Weapon 5269 | -4/Factory | Identified Centrium Greatsword 5277 | -4/Factory | First assault squad dispatched 5528 | -4/Factory | Discovered new exit (range 16) 5531 | -4/Factory | Identified exit to Research 5536 | -4/Factory | Entered Research 5536 | -3/Research | Evolved 2 slots: Utility x2 5647 | -3/Research | Spotted B-86 Titan 5674 | -3/Research | Found Prototype Processor 5675 | -3/Research | Identified Exp. Signal Interpreter 5680 | -3/Research | Found Exp. Signal Interpreter 5736 | -3/Research | Revision forces began assault on 0b10 5778 | -3/Research | Spotted B-86 Titan 5836 | -3/Research | Identified exit to Research 5838 | -3/Research | Found Fusion Bomb Launcher 5911 | -3/Research | Build established: Hacker-Sprinter 5980 | -3/Research | Met up with Revision 17++ 5995 | -3/Research | Fabricated Centrium Leg? 6028 | -3/Research | Discovered new exit (range 4) 6029 | -3/Research | Identified exit to Testing 6033 | -3/Research | Entered Testing 6085 | -3/Testing | Found Prototype Ballistic Gun 6086 | -3/Testing | Identified Hyp. Multirail 6126 | -3/Testing | Found Prototype Ballistic Cannon 6127 | -3/Testing | Identified Omega Cannon 6145 | -3/Testing | Found Prototype Device 6146 | -3/Testing | Identified Adv. Kinecellerator 6217 | -3/Testing | Spotted PX-TXIRWI450S 6269 | -3/Testing | Scanned by Researcher 6323 | -3/Testing | Search patrols dispatched 6340 | -3/Testing | Discovered exit to Research (range 9) 6342 | -3/Testing | Entered Research 6342 | -2/Research | Evolved 2 slots: Utility x2 6369 | -2/Research | Lost 4 parts (3n1u) 6422 | -2/Research | Spotted B-90 Cyclops 6469 | -2/Research | Central database locked down 6476 | -2/Research | Discovered new exit (range 11) 6481 | -2/Research | Identified exit to Access 6481 | -2/Research | Entered Access 6481 | -1/Access | Evolved 2 slots: Utility x2 6570 | -1/Access | Build established: Hacker-Scout 6731 | -1/Access | Search patrols dispatched 6847 | -1/Access | Lost 5 parts (1p3n1u) 6860 | -1/Access | Discovered new exit (range 7) 6862 | -1/Access | Identified exit to Command 6862 | -1/Access | Entered Command 6953 | -1/Command | Identified exit to Surface 6982 | -1/Command | Spotted Executioner 6982 | -1/Command | Spotted Executioner 6982 | -1/Command | Spotted Executioner 6982 | -1/Command | Spotted Executioner 6982 | -1/Command | Spotted Striker 6982 | -1/Command | Spotted Striker 6982 | -1/Command | Spotted Alpha 7 6982 | -1/Command | Spotted Alpha 7 6986 | -1/Command | Spotted B-99 Colossus 6992 | -1/Command | Core integrity fell below 50% 6999 | -1/Command | Core integrity fell below 20% 7000 | -1/Command | Destroyed by B-99 Colossus with Multirail Last Messages --------------- 06997_ Field strength at 94. 06998_ Penetrated by Slug. 06998_ Slug penetrates Wall. 06998_ Slug penetrates Executioner. 06998_ Slug penetrates Striker. 06998_ Field strength at 68. 06998_ Penetrated by Slug. 06998_ Graphene Brace destroyed. 06998_ Stasis field depleted. 06998_ Slug penetrates Alpha 7. 06998_ Slug penetrates Earth. 06999_ Critical hit (Impale). 06999_ Penetrated by Slug. 06999_ Stasis field depleted. 07000_ Penetrated by Slug. 07000_ Slug penetrates Wall. 07000_ Triggered Stasis Trap. 07000_ A bubble of rippling energy engulfs the area. 07000_ Field strength at 94. 07000_ Penetrated by Slug. Map ----- +----------------------------------------------------+ | ????????????????????????????????????#= ! #?????? | | ????????????????????????????????????# #?????? | | ????????????????????????????????????##+#####?????? | | ????????????????????????????????????+ +??????? | | ????????????????????????????????????## #??????? | | ?????????????????????????????????????# #??????? | | ?????????????????????????????????????# #??????? | | ?????????????????????????????????????# #??????? | | ?????????????????????????????????????# +??????? | | ?????????????????????????????????????# #??????? | | ?????????????????????????????????????# #??????? | | ????????????????????????????#????????# #??????? | | ????????????????????????????# ??????# #??????? | | ????????????????????????????# ""????# #??????? | | ????????????????????????????# """"??# #????#?? | | ????????????????????????????# """" # #### #?? | | ????????????????????????????# """" + #?? | | ????????????????????????????# # #?? | | ????????????????????????????# + +?? | | ????????????????????????????#######+## #?? | | ??????????????????????????????????# #?? | | ???????#####??????????????????????# #?? | | ???????# ???????????????????# #?? | | ???????# ????#?#####????## """" #?? | | ????????? # # # # ### # """" #?? | | ????????????????"^ E@ %%*%;!## " "" #?? | | ????????????????" K E!/=%Rh " | | ????????????????" ^ 7 / = % | | ?????????????